bitfinex/quotes_BTCUSD_20250822
["timestamp","ask_amount","ask_price","bid_price","bid_amount"]
[1755870161271,0.17738689,112840.0,112830.0,0.01645652]
[1755870161480,0.95245892,112840.0,112830.0,0.01945652]
[1755870161710,0.17936689,112840.0,112830.0,0.01945652]
[1755870161920,5.81504714,112840.0,112830.0,0.01945652]
[1755870162132,5.84076224,112840.0,112830.0,0.01645652]
[1755870162341,0.17727353,112820.0,112800.0,0.18252]
[1755870162591,0.1861372,112820.0,112800.0,0.04154157]
[1755870162797,0.17728924,112810.0,112800.0,0.04597419]
[1755870163025,0.77315203,112810.0,112800.0,0.01646957]
[1755870163239,0.95038127,112810.0,112800.0,0.01646957]
[1755870163456,0.95044127,112810.0,112800.0,0.01646957]
[1755870163670,5.83058329,112810.0,112800.0,0.01646957]
[1755870163891,5.83058329,112810.0,112770.0,0.25312]
[1755870163892,0.1773364,112780.0,112770.0,0.25312]
[1755870164094,0.1773964,112780.0,112770.0,0.29491906]
[1755870164321,0.0682,112810.0,112790.0,0.07043804]
[1755870164528,0.24549107,112810.0,112800.0,0.00443262]
[1755870164763,0.18618853,112790.0,112750.0,0.07943804]
[1755870164972,0.10453448,112810.0,112760.0,0.01206839]
[1755870165208,0.77309203,112790.0,112770.0,0.0032]
[1755870165417,0.4082,112810.0,112780.0,0.00527]
[1755870165635,0.18572,112800.0,112790.0,0.0032]
[1755870165838,1.18129203,112810.0,112790.0,0.09012161]
[1755870166049,0.0010601,112800.0,112790.0,0.01648357]
[1755870166280,1.13721709,112800.0,112790.0,0.01648357]
[1755870166505,1.5041661,112800.0,112790.0,0.01648357]
[1755870166719,0.18618969,112790.0,112750.0,0.25152161]
[1755870166942,0.0010001,112780.0,112770.0,0.24779017]
[1755870167147,0.18696,112780.0,112770.0,0.09208241]
[1755870167354,0.77315203,112780.0,112770.0,0.01649437]
[1755870167558,0.18786,112780.0,112770.0,0.01649437]
[1755870167785,0.96095203,112780.0,112770.0,0.01649437]
[1755870168211,0.18786,112780.0,112770.0,0.01649437]
[1755870168418,0.96091203,112780.0,112770.0,0.01749437]
[1755870168862,0.18782,112780.0,112770.0,0.01749437]
[1755870169093,0.96093203,112780.0,112770.0,0.01749437]
[1755870169303,5.26618861,112780.0,112770.0,0.01749437]
[1755870169543,6.40341252,112780.0,112770.0,0.01749437]
[1755870169748,6.21509252,112780.0,112770.0,0.01496601]
[1755870169966,5.41596488,112780.0,112770.0,0.01496601]
[1755870170175,6.18349405,112780.0,112770.0,0.01496601]
[1755870170396,6.36083045,112780.0,112770.0,0.001]
[1755870170605,6.17540696,112780.0,112770.0,0.001]
[1755870170821,6.16920503,112780.0,112750.0,0.18110801]
[1755870171045,0.0682,112770.0,112760.0,0.18266495]
[1755870171259,0.25868,112770.0,112760.0,0.18242786]
[1755870171466,0.0682,112770.0,112760.0,0.2528659]
[1755870171708,0.002,112780.0,112770.0,0.17733964]
[1755870171935,0.96753213,112780.0,112760.0,0.2508859]
[1755870172161,0.96653203,112780.0,112760.0,0.07351804]
[1755870172368,0.77409213,112770.0,112750.0,0.17802338]
[1755870172582,0.77309203,112760.0,112750.0,0.00064478]
[1755870172797,0.77309203,112760.0,112750.0,0.18110837]
[1755870173023,0.77309203,112760.0,112750.0,0.00372478]
[1755870173233,0.25438855,112790.0,112760.0,0.17736707]
[1755870173234,0.0682,112790.0,112760.0,0.17736707]
[1755870173477,5.554493,112780.0,112770.0,0.00308]
[1755870173688,0.0682,112790.0,112770.0,0.00506]
[1755870173904,5.3636931,112780.0,112770.0,0.18241213]
[1755870174111,0.96495203,112780.0,112760.0,0.07243804]
[1755870174336,0.0682,112790.0,112760.0,0.27712736]
[1755870174541,6.32858513,112780.0,112760.0,0.27712736]
[1755870174771,0.19176,112770.0,112760.0,0.27404736]
[1755870174975,0.84129203,112790.0,112770.0,0.18241213]
[1755870175179,0.1918,112780.0,112770.0,0.17735213]
[1755870175388,0.96489203,112780.0,112770.0,0.00934423]
[1755870175637,0.1918,112780.0,112770.0,0.18043213]
[1755870175848,0.96489203,112780.0,112770.0,0.18043213]
[1755870176075,0.0682,112790.0,112780.0,0.1773364]
[1755870176289,1.03457213,112790.0,112780.0,0.1763364]
[1755870176500,1.03357203,112790.0,112770.0,0.17735213]
[1755870176914,0.26048,112790.0,112770.0,0.18043213]
[1755870177349,0.0682,112790.0,112770.0,0.18043213]
[1755870177546,0.84229213,112790.0,112770.0,0.18043213]
[1755870177752,0.84129203,112790.0,112770.0,0.18143213]
[1755870177956,0.19248,112780.0,112770.0,0.18143213]
[1755870178225,0.0682,112790.0,112770.0,0.18441213]
[1755870178412,0.0692001,112790.0,112770.0,0.18441213]
[1755870178627,0.26088,112790.0,112780.0,0.25085444]
[1755870178848,0.0682,112790.0,112780.0,0.25283444]
[1755870179509,0.06708747,112790.0,112780.0,0.25283444]
[1755870179729,0.06708747,112790.0,112780.0,0.00506]
[1755870179963,1.0329395,112790.0,112780.0,0.1773364]
[1755870180169,1.0330995,112790.0,112780.0,0.1773364]
[1755870180418,1.2104805,112790.0,112770.0,0.001]
[1755870180669,0.96709213,112780.0,112770.0,0.001]
[1755870180861,0.19312,112780.0,112770.0,0.17835213]
[1755870181074,0.06708747,112790.0,112770.0,0.17835213]
[1755870181292,0.0010001,112780.0,112770.0,0.18143213]
[1755870181494,0.77309203,112780.0,112760.0,0.24780458]
[1755870181713,0.77309203,112780.0,112770.0,0.00506]
[1755870181931,0.77309203,112780.0,112760.0,0.25088458]
[1755870182147,0.96621203,112780.0,112760.0,0.07351804]
[1755870182361,0.77309203,112770.0,112760.0,0.07043804]
[1755870182581,0.25327441,112790.0,112760.0,0.07043804]
[1755870182801,0.77315203,112770.0,112750.0,0.18802837]
[1755870183019,0.77309203,112770.0,112750.0,0.19110837]
[1755870183235,0.19296,112780.0,112750.0,0.19110837]
[1755870183457,0.77309203,112770.0,112760.0,0.25286451]
[1755870183698,0.77309203,112780.0,112770.0,0.1773503]
[1755870183913,0.193,112780.0,112770.0,0.00308]
[1755870184133,0.96609203,112780.0,112770.0,0.17735213]
[1755870184361,0.06708747,112790.0,112770.0,0.17933213]
[1755870184583,0.68790379,112790.0,112780.0,0.1826331]
[1755870184807,0.06708747,112790.0,112780.0,0.1823964]
[1755870185038,0.06708747,112790.0,112780.0,0.25283444]
[1755870185261,0.62081632,112800.0,112790.0,0.17732068]
[1755870185466,0.62081632,112800.0,112790.0,0.17930068]
[1755870185684,0.17730163,112840.0,112800.0,0.17730414]
[1755870185940,5.4319331,112830.0,112810.0,0.00529611]
[1755870186166,4.8636931,112820.0,112810.0,0.00308]
[1755870186406,0.81405632,112820.0,112800.0,0.17951923]
[1755870186622,0.37057353,112820.0,112810.0,0.00014478]
[1755870187078,0.71057353,112820.0,112810.0,0.00014478]
[1755870187301,0.34006,112820.0,112810.0,0.00014478]
[1755870187533,0.19412,112820.0,112810.0,0.00322478]
[1755870187789,0.62081632,112820.0,112810.0,0.00520478]
[1755870188057,0.62081632,112820.0,112810.0,0.18471013]
[1755870188314,0.19508,112820.0,112810.0,0.00520478]
[1755870188592,1.12181632,112820.0,112810.0,0.18051402]
[1755870188843,4.862693,112820.0,112810.0,0.00520478]
[1755870189065,5.48350932,112820.0,112810.0,0.18249402]
[1755870189317,0.62181632,112820.0,112810.0,0.00014478]
[1755870189816,0.81653632,112820.0,112810.0,0.00014478]
[1755870190041,0.62281632,112820.0,112810.0,0.00322478]
[1755870190250,0.001,112820.0,112810.0,0.00520478]
[1755870190499,0.62181642,112820.0,112810.0,0.00014478]
[1755870190703,0.62087632,112820.0,112810.0,0.00014478]
[1755870190931,0.62087632,112820.0,112810.0,0.00214478]
[1755870191162,1.13814985,112820.0,112810.0,0.00214478]
[1755870191385,6.74877647,112820.0,112810.0,0.00014478]
[1755870191592,6.12796015,112820.0,112810.0,0.00014478]
[1755870191805,6.32132122,112820.0,112810.0,0.00014478]
[1755870192017,6.13625224,112820.0,112810.0,0.00014478]
[1755870192224,6.03193357,112820.0,112810.0,0.00014478]
[1755870192455,1.16924057,112820.0,112810.0,0.00014478]
[1755870192733,1.16023442,112820.0,112810.0,0.00014478]
[1755870192968,1.33134985,112820.0,112810.0,0.00014478]
[1755870193632,1.33956898,112820.0,112810.0,0.00014478]
[1755870194036,1.14436898,112820.0,112810.0,0.00014478]
[1755870194271,0.82095545,112820.0,112810.0,0.00014478]
[1755870194458,0.81479632,112820.0,112810.0,0.00014478]
[1755870194589,0.81475632,112820.0,112810.0,0.00014478]
[1755870194798,0.19488,112820.0,112810.0,0.00014478]
[1755870195005,0.002,112820.0,112810.0,0.18471013]
[1755870195231,0.002,112820.0,112810.0,0.18249402]
[1755870195424,0.002,112820.0,112810.0,0.26937877]
[1755870196635,0.62181632,112820.0,112810.0,0.00520478]
[1755870196929,0.001,112820.0,112810.0,0.18249402]
[1755870197773,0.62081632,112820.0,112810.0,0.00520478]
[1755870197979,0.62081632,112820.0,112810.0,0.00014478]
[1755870197980,0.62087632,112820.0,112810.0,0.00014478]
[1755870198187,0.62081632,112820.0,112810.0,0.00527478]
[1755870198395,0.19304,112830.0,112810.0,0.18256402]
[1755870198597,0.62081632,112830.0,112810.0,0.00527478]
[1755870198824,0.62081632,112820.0,112810.0,0.00527478]
[1755870199013,0.17724384,112840.0,112810.0,0.18256402]
[1755870199244,0.62081632,112820.0,112810.0,0.00527478]
[1755870199453,0.62081632,112820.0,112810.0,0.00314478]
[1755870199637,0.20655163,112830.0,112810.0,0.00827478]
[1755870199869,0.62081632,112820.0,112810.0,0.00827478]
[1755870200096,0.62081632,112820.0,112810.0,0.00727478]
[1755870200317,0.62081632,112820.0,112810.0,0.18456402]
[1755870200528,0.01387163,112830.0,112820.0,0.17727353]
[1755870200739,0.01387163,112830.0,112820.0,0.25284157]
[1755870201167,0.01387163,112830.0,112820.0,0.33972632]
[1755870201423,0.01487163,112830.0,112820.0,0.33972632]
[1755870201823,0.01587163,112830.0,112820.0,0.33972632]
[1755870202231,0.63568795,112830.0,112820.0,0.33972632]
[1755870202660,0.01487163,112830.0,112820.0,0.33972632]
[1755870203078,0.63568795,112830.0,112820.0,0.26928828]
[1755870203286,0.63568795,112830.0,112820.0,0.27228828]
[1755870203500,0.01487163,112830.0,112820.0,0.27228828]
[1755870203715,0.63568795,112830.0,112820.0,0.003]
[1755870203941,0.63474795,112830.0,112820.0,0.003]
[1755870204788,0.63474795,112830.0,112810.0,0.19484478]
[1755870205001,0.62081632,112820.0,112810.0,0.36895345]
[1755870205187,0.01387163,112830.0,112820.0,0.17922353]
[1755870205389,0.01387163,112830.0,112820.0,0.00195]
[1755870205593,0.63468795,112830.0,112820.0,0.00613]
[1755870206140,0.62081632,112830.0,112820.0,0.001]
[1755870206343,0.36864385,112840.0,112820.0,0.00418]
[1755870206597,0.62081632,112830.0,112820.0,0.00418]
[1755870207012,0.62081632,112830.0,112820.0,0.00613]
[1755870207236,0.62081632,112830.0,112820.0,0.00513]
[1755870207440,0.62081632,112830.0,112810.0,0.45583839]
[1755870207654,0.62081632,112830.0,112810.0,0.45901839]
[1755870207846,0.62081632,112830.0,112820.0,0.00513]
[1755870208060,0.62081632,112830.0,112820.0,0.18240353]
[1755870208269,0.62081632,112840.0,112820.0,0.26170524]
[1755870208471,0.19064,112850.0,112820.0,0.34540999]
[1755870208673,5.98350932,112840.0,112830.0,0.00318]
[1755870208875,0.62081632,112840.0,112830.0,0.00318]
[1755870209615,0.62081632,112840.0,112830.0,0.00513]
[1755870209859,0.01386994,112840.0,112830.0,0.00513]
[1755870210080,0.63468626,112840.0,112830.0,0.00513]
[1755870211360,0.63468626,112840.0,112830.0,0.28407047]
[1755870211361,0.01486994,112840.0,112830.0,0.28407047]
[1755870211566,0.01486994,112840.0,112830.0,0.28185475]
[1755870211940,0.01386994,112840.0,112830.0,0.28185475]
[1755870212344,0.01486994,112840.0,112830.0,0.28185475]
[1755870212722,0.001,112840.0,112830.0,0.28185475]
[1755870213273,0.001,112840.0,112830.0,0.28285475]
[1755870213441,0.67102736,112860.0,112830.0,0.28485475]
[1755870213651,0.05021104,112860.0,112840.0,0.09228027]
[1755870213848,0.05021104,112860.0,112850.0,0.00734533]
[1755870214263,0.67102736,112860.0,112850.0,0.00513]
[1755870214699,0.05021104,112860.0,112850.0,0.00513]
[1755870215111,0.05069336,112860.0,112850.0,0.00513]
[1755870215376,0.0143502,112860.0,112850.0,0.09644541]
[1755870215582,0.04983132,112860.0,112850.0,0.23508345]
[1755870215790,0.00048232,112860.0,112850.0,0.23065279]
[1755870216215,0.00048232,112860.0,112850.0,0.23165279]
[1755870216581,0.00048232,112860.0,112850.0,0.42029279]
[1755870217968,0.00048232,112860.0,112850.0,0.42429279]
[1755870218128,0.00048232,112860.0,112850.0,0.42397279]
[1755870218342,0.00048232,112860.0,112850.0,0.42297279]
[1755870218730,0.00048232,112860.0,112850.0,0.42589279]
[1755870218935,0.00048232,112860.0,112850.0,0.35545475]
[1755870219141,0.00048232,112860.0,112850.0,0.35245475]
[1755870219566,0.00048232,112860.0,112850.0,0.35545475]
[1755870220883,0.00048232,112860.0,112850.0,0.35145475]
[1755870221108,0.00048232,112860.0,112850.0,0.69145475]
[1755870221319,0.00048232,112860.0,112850.0,0.69645475]
[1755870221971,0.00048232,112860.0,112850.0,0.50821475]
[1755870222416,0.00048232,112860.0,112850.0,0.35581475]
[1755870222844,0.01434874,112860.0,112850.0,0.35581475]
[1755870223069,0.01440874,112860.0,112850.0,0.16308475]
[1755870223312,0.63522506,112860.0,112850.0,0.35060475]
[1755870223543,0.01440874,112860.0,112850.0,0.09188475]
[1755870223774,0.63522506,112860.0,112850.0,0.005]
[1755870224253,0.01434874,112860.0,112840.0,0.18756]
[1755870224444,0.63516506,112860.0,112850.0,0.00421533]
[1755870224655,0.63522506,112860.0,112850.0,0.005]
[1755870224868,0.01440874,112860.0,112850.0,0.005]
[1755870225099,0.01440874,112860.0,112850.0,0.002]
[1755870225325,0.63522506,112860.0,112850.0,0.002]
[1755870225774,0.63522506,112860.0,112840.0,0.18724]
[1755870225991,0.62081632,112850.0,112840.0,0.21278]
[1755870226212,0.62087632,112850.0,112840.0,0.21278]
[1755870226595,0.62087632,112850.0,112840.0,0.02554]
[1755870226829,0.62087632,112850.0,112830.0,0.2552]
[1755870227032,0.62081632,112840.0,112830.0,0.2552]
[1755870227456,0.62087632,112840.0,112830.0,0.2552]
[1755870227685,0.62087632,112840.0,112820.0,0.07043804]
[1755870227914,0.62081632,112830.0,112820.0,0.25723804]
[1755870228351,0.62087632,112830.0,112820.0,0.25723804]
[1755870228566,0.62087632,112830.0,112800.0,0.07043804]
[1755870228779,0.62087632,112830.0,112780.0,0.07043804]
[1755870228780,0.62081632,112810.0,112780.0,0.07043804]
[1755870228997,0.62087632,112790.0,112780.0,0.15732279]
[1755870229697,0.62081632,112790.0,112780.0,0.15732279]
[1755870229913,0.01387527,112800.0,112780.0,0.16265279]
[1755870230143,0.63469159,112800.0,112790.0,0.18684]
[1755870230381,0.66587844,112800.0,112780.0,0.34750757]
[1755870230602,0.01387527,112800.0,112790.0,0.09664775]
[1755870230874,0.01387527,112800.0,112790.0,0.09221475]
[1755870231099,0.66592762,112800.0,112780.0,0.25830282]
[1755870231345,0.01393527,112800.0,112780.0,0.34518757]
[1755870231637,0.62081632,112790.0,112780.0,0.00014478]
[1755870231866,0.80747632,112790.0,112780.0,0.00014478]
[1755870232326,6e-05,112790.0,112780.0,0.00014478]
[1755870232577,0.04497101,112800.0,112780.0,0.00014478]
[1755870232833,0.62087632,112790.0,112780.0,0.00014478]
[1755870234875,6e-05,112790.0,112780.0,0.00014478]
[1755870235142,0.62287642,112790.0,112780.0,0.00014478]
[1755870235376,0.62187632,112790.0,112780.0,0.00014478]
[1755870235599,0.80879632,112790.0,112780.0,0.00014478]
[1755870235852,0.62187632,112790.0,112780.0,0.07058282]
[1755870236095,0.62187632,112790.0,112780.0,0.27271262]
[1755870236348,0.62187632,112790.0,112780.0,0.09537622]
[1755870236595,0.62187632,112790.0,112780.0,0.00014478]
[1755870236821,0.799197,112790.0,112780.0,0.00014478]
[1755870237344,0.00106,112790.0,112780.0,0.00014478]
[1755870237683,1.12187632,112790.0,112780.0,0.00014478]
[1755870237924,5.48456932,112790.0,112780.0,0.00014478]
[1755870238088,0.00106,112790.0,112780.0,0.00014478]
[1755870238301,0.62287642,112790.0,112780.0,0.00014478]
[1755870238569,0.799197,112790.0,112780.0,0.00014478]
[1755870238807,0.62187632,112790.0,112780.0,0.00014478]
[1755870239478,0.63575423,112790.0,112780.0,0.00014478]
[1755870239687,0.63575423,112790.0,112780.0,0.17748118]
[1755870239897,0.01493791,112790.0,112780.0,0.00014478]
[1755870240103,0.51487791,112790.0,112780.0,0.18502788]
[1755870240315,6.0030506,112790.0,112780.0,0.00014478]
[1755870240525,6.01576791,112790.0,112780.0,0.00014478]
[1755870240740,6.03321693,112790.0,112780.0,0.00014478]
[1755870240955,5.41240061,112790.0,112780.0,0.00014478]
[1755870241159,6.03321693,112790.0,112780.0,0.00014478]
[1755870241361,6.20492791,112790.0,112780.0,0.00014478]
[1755870241804,5.58411159,112790.0,112780.0,0.00014478]
[1755870242024,5.51365616,112790.0,112780.0,0.00014478]
[1755870242252,6.13447248,112790.0,112780.0,0.00014478]
[1755870242704,6.13467248,112790.0,112780.0,0.00014478]
[1755870243365,5.9627615,112790.0,112780.0,0.00014478]
[1755870243798,6.2202815,112790.0,112780.0,0.00014478]
[1755870244017,5.59946518,112790.0,112780.0,0.00014478]
[1755870244245,6.0309615,112790.0,112780.0,0.00014478]
[1755870244451,5.58185616,112790.0,112780.0,0.00014478]
[1755870244716,5.051693,112790.0,112780.0,0.00014478]
[1755870244945,5.84987,112790.0,112780.0,0.00014478]
[1755870245168,5.8637492,112790.0,112780.0,0.00014478]
[1755870245378,6.30806787,112790.0,112780.0,0.00014478]
[1755870245590,6.30806787,112790.0,112750.0,0.0105]
[1755870245591,0.51736786,112760.0,112750.0,0.0105]
[1755870245811,6.89670252,112760.0,112750.0,0.01064475]
[1755870246048,6.36275585,112760.0,112750.0,0.01064475]
[1755870246279,6.98357217,112760.0,112750.0,0.01064475]
[1755870246484,6.36275585,112760.0,112750.0,0.01064475]
[1755870246691,5.74177953,112760.0,112750.0,0.01064475]
[1755870246904,6.17339585,112760.0,112750.0,0.01064475]
[1755870247108,6.25819718,112760.0,112750.0,0.01064475]
[1755870247314,6.06907718,112760.0,112750.0,0.01064475]
[1755870247520,5.48350932,112760.0,112750.0,0.01064475]
[1755870247729,5.85099718,112760.0,112750.0,0.01064475]
[1755870247936,5.052813,112760.0,112750.0,0.01064475]
[1755870248146,5.053613,112760.0,112750.0,0.02408303]
[1755870248556,5.054613,112760.0,112750.0,0.02408303]
[1755870248767,5.054493,112760.0,112750.0,0.01597475]
[1755870248972,5.23186086,112760.0,112750.0,0.01064475]
[1755870249184,6.19067718,112760.0,112750.0,0.01064475]
[1755870249398,6.2081262,112760.0,112750.0,0.01064475]
[1755870249612,6.30987856,112760.0,112750.0,0.01064475]
[1755870250074,6.12007856,112760.0,112750.0,0.01064475]
[1755870250299,6.97091617,112760.0,112750.0,0.00751058]
[1755870250524,0.17744654,112710.0,112700.0,0.07093804]
[1755870250748,0.98782286,112710.0,112700.0,0.00064483]
[1755870251000,6.19051586,112710.0,112700.0,0.00064483]
[1755870251204,6.22185263,112710.0,112700.0,0.00064483]
[1755870251628,5.60103631,112710.0,112700.0,0.00064483]
[1755870251836,6.22185263,112710.0,112700.0,0.00064483]
[1755870252039,6.30872228,112710.0,112700.0,0.00064483]
[1755870252336,6.94663957,112710.0,112700.0,0.00064483]
[1755870252542,6.52721902,112710.0,112700.0,0.00064483]
[1755870252755,6.32055805,112710.0,112700.0,0.00064483]
[1755870252977,6.51027805,112710.0,112700.0,0.00064483]
[1755870253185,6.56227805,112710.0,112700.0,0.00064483]
[1755870253396,7.06872752,112710.0,112700.0,0.00064483]
[1755870253608,6.86190655,112710.0,112700.0,0.00064483]
[1755870253826,6.06269446,112710.0,112700.0,0.00064483]
[1755870254033,6.56102717,112710.0,112700.0,0.00064483]
[1755870254234,6.51102717,112710.0,112700.0,0.00064483]
[1755870254441,6.3455233,112710.0,112700.0,0.00064483]
[1755870254653,5.43410559,112710.0,112700.0,0.00064483]
[1755870254889,5.33949657,112710.0,112700.0,0.00064483]
[1755870255072,6.10787383,112710.0,112700.0,0.00064483]
[1755870255286,6.10287383,112710.0,112700.0,0.00064483]
[1755870255495,6.46032285,112710.0,112700.0,0.00064483]
[1755870255700,6.27572285,112710.0,112700.0,0.00064483]
[1755870255904,6.46556285,112710.0,112700.0,0.00064483]
[1755870256113,6.46544285,112710.0,112700.0,0.00064483]
[1755870256321,6.46244285,112710.0,112700.0,0.00064483]
[1755870256527,5.68789178,112710.0,112700.0,0.00064483]
[1755870256736,6.5493125,112710.0,112700.0,0.00064483]
[1755870256948,6.46232285,112710.0,112700.0,0.00064483]
[1755870257161,5.68577178,112710.0,112700.0,0.00064483]
[1755870257362,6.46132285,112710.0,112700.0,0.00064483]
[1755870257570,6.46132285,112710.0,112700.0,0.00264483]
[1755870257741,6.5481925,112710.0,112700.0,0.00264483]
[1755870258368,6.3585925,112710.0,112700.0,0.00264483]
[1755870258605,0.95204485,112680.0,112670.0,0.0004]
[1755870258772,0.36697378,112680.0,112670.0,0.0004]
[1755870258965,0.19494077,112690.0,112670.0,0.00251]
[1755870259167,0.19494077,112690.0,112670.0,0.00573]
[1755870259168,5.73062688,112680.0,112670.0,0.00573]
[1755870259493,0.36693378,112680.0,112670.0,0.00362]
[1755870259646,0.36717378,112680.0,112670.0,0.0004]
[1755870259853,0.36717378,112680.0,112670.0,0.00573]
[1755870260082,0.3985636,112680.0,112670.0,0.00573]
[1755870260286,0.3985636,112680.0,112670.0,0.0004]
[1755870260495,0.22106982,112680.0,112670.0,0.00573]
[1755870260695,0.22110982,112680.0,112670.0,0.00573]
[1755870260895,0.18964,112680.0,112670.0,0.00773]
[1755870261699,0.36713378,112680.0,112670.0,0.00773]
[1755870261904,0.36713378,112680.0,112670.0,0.0054]
[1755870261905,1.65356571,112680.0,112670.0,0.0054]
[1755870262268,6.51625871,112680.0,112670.0,0.0054]
[1755870262498,0.53497431,112660.0,112650.0,0.0005]
[1755870262726,6.36193838,112660.0,112650.0,0.0005]
[1755870262936,6.38693838,112660.0,112650.0,0.0005]
[1755870263151,6.5573746,112660.0,112650.0,0.0005]
[1755870263366,5.74672156,112660.0,112650.0,0.0005]
[1755870263576,6.55416176,112660.0,112650.0,0.0005]
[1755870264010,6.5774343,112660.0,112650.0,0.00098289]
[1755870264221,6.5609786,112660.0,112650.0,0.00098289]
[1755870264432,6.58042914,112660.0,112650.0,0.00098289]
[1755870264642,6.58034914,112660.0,112650.0,0.00098289]
[1755870264856,0.17758835,112620.0,112610.0,0.07043804]
[1755870265104,1.20993942,112620.0,112610.0,0.07058296]
[1755870265534,1.2238381,112620.0,112610.0,0.07058296]
[1755870265744,0.44928703,112620.0,112610.0,0.07380296]
[1755870265952,1.2238381,112620.0,112610.0,0.07591296]
[1755870266160,0.43538835,112620.0,112610.0,0.07591296]
[1755870266384,1.20993942,112620.0,112610.0,0.07591296]
[1755870267007,1.25101813,112620.0,112610.0,0.07591296]
[1755870267216,1.25101813,112620.0,112610.0,0.07380296]
[1755870267419,1.25101813,112620.0,112610.0,0.00014492]
[1755870267420,1.26846715,112620.0,112610.0,0.00014492]
[1755870267663,6.47116015,112620.0,112610.0,0.00014492]
[1755870267856,6.28264015,112620.0,112610.0,0.00014492]
[1755870268053,6.47140015,112620.0,112610.0,0.00014492]
[1755870268266,6.47755981,112620.0,112610.0,0.00014492]
[1755870268491,6.28879981,112620.0,112610.0,0.00014492]
[1755870268695,6.47635981,112620.0,112610.0,0.00014492]
[1755870269135,5.47217003,112620.0,112610.0,0.00547492]
[1755870269346,6.24256144,112620.0,112610.0,0.00547492]
[1755870269549,5.65449037,112620.0,112610.0,0.00547492]
[1755870269760,5.459453,112620.0,112610.0,0.00547492]
[1755870269975,6.42549228,112620.0,112610.0,0.00014492]
[1755870270217,6.52981095,112620.0,112610.0,0.00014492]
[1755870270649,6.34233095,112620.0,112610.0,0.00547492]
[1755870270860,4.94587286,112620.0,112610.0,0.00547492]
[1755870271064,0.26076821,112620.0,112610.0,0.00547492]
[1755870271269,0.44932821,112620.0,112610.0,0.00547492]
[1755870271928,0.01489986,112620.0,112610.0,0.00225492]
[1755870272136,0.01489986,112620.0,112610.0,0.18307904]
[1755870272363,0.01164986,112620.0,112610.0,0.18307904]
[1755870272569,0.00489986,112620.0,112610.0,1.38451486]
[1755870272793,0.004,112620.0,112610.0,1.38451486]
[1755870273017,0.001,112620.0,112610.0,1.38451486]
[1755870273433,0.18828,112650.0,112630.0,0.17756988]
[1755870273645,0.18828,112650.0,112630.0,0.17556988]
[1755870274081,0.18828,112650.0,112630.0,0.34]
[1755870274924,0.17855825,112640.0,112610.0,0.61063379]
[1755870275149,0.18956599,112640.0,112610.0,0.00614492]
[1755870275411,0.36645328,112630.0,112610.0,0.00014492]
[1755870275638,0.0010001,112620.0,112610.0,0.00514492]
[1755870275849,0.18060845,112620.0,112610.0,0.00514492]
[1755870276059,0.95728942,112620.0,112610.0,0.00014492]
[1755870276479,0.18273835,112620.0,112610.0,0.00214492]
[1755870276918,6.17743144,112620.0,112610.0,0.00214492]
[1755870277535,6.17743144,112620.0,112610.0,0.00014492]
[1755870277742,6.18361682,112620.0,112610.0,0.00014492]
[1755870277984,5.59638575,112620.0,112610.0,0.00014492]
[1755870278192,6.37093682,112620.0,112610.0,0.00014492]
[1755870278404,6.47431402,112620.0,112610.0,0.00014492]
[1755870279043,6.48821562,112620.0,112610.0,0.00014492]
[1755870279257,5.52634455,112620.0,112610.0,0.00014492]
[1755870279463,6.48801562,112620.0,112610.0,0.00014492]
[1755870279669,6.21402597,112620.0,112610.0,0.00014492]
[1755870279883,6.40090597,112620.0,112610.0,0.00014492]
[1755870280089,6.40090597,112620.0,112610.0,0.00314492]
[1755870280299,6.40490597,112620.0,112610.0,0.00014492]
[1755870280524,6.30489562,112620.0,112610.0,0.00014492]
[1755870280738,6.49377562,112620.0,112610.0,0.00014492]
[1755870281099,6.49379338,112620.0,112610.0,0.00014492]
[1755870281309,6.30695601,112620.0,112610.0,0.00014492]
[1755870281781,6.22008643,112620.0,112610.0,0.00014492]
[1755870282017,5.44553507,112620.0,112610.0,0.00014492]
[1755870282233,4.9053477,112620.0,112610.0,0.00014492]
[1755870282669,0.2291347,112620.0,112610.0,0.07058296]
[1755870282885,0.0287531,112620.0,112610.0,0.07058296]
[1755870283137,0.7091531,112620.0,112610.0,0.09545271]
[1755870283370,5.2545909,112620.0,112610.0,0.00014492]
[1755870283575,0.37934353,112620.0,112610.0,0.00014492]
[1755870283799,0.20949894,112620.0,112610.0,0.00014492]
[1755870284009,0.01133518,112620.0,112610.0,0.00014492]
[1755870284232,0.37608665,112620.0,112610.0,0.00014492]
[1755870284445,0.40221926,112620.0,112610.0,0.00314492]
[1755870284667,0.39166329,112620.0,112610.0,0.00314492]
[1755870284847,0.39166396,112620.0,112610.0,0.00314492]
[1755870285086,0.20550396,112620.0,112610.0,0.00314492]
[1755870285297,0.39146741,112620.0,112610.0,0.00314492]
[1755870286355,0.20550741,112620.0,112610.0,0.00514492]
[1755870286579,0.02276906,112620.0,112610.0,0.00514492]
[1755870286792,0.0062082,112620.0,112610.0,0.18274904]
[1755870286998,0.0062082,112620.0,112610.0,0.00514492]
[1755870287213,0.0062082,112620.0,112610.0,0.18274904]
[1755870287419,0.0062082,112620.0,112610.0,0.25318708]
[1755870287633,0.0062082,112620.0,112610.0,0.25118708]
[1755870287841,0.0062082,112620.0,112610.0,1.02573815]
[1755870288052,0.0062082,112620.0,112610.0,0.25118708]
[1755870288261,0.0062082,112620.0,112610.0,0.25122708]
[1755870288497,0.0062082,112620.0,112610.0,1.4536629]
[1755870289114,0.06832,112650.0,112630.0,0.17757258]
[1755870289333,0.20781691,112650.0,112630.0,0.17757258]
[1755870289544,0.02281691,112650.0,112640.0,4e-05]
[1755870289967,0.52281691,112650.0,112640.0,4e-05]
[1755870290174,5.36891579,112650.0,112640.0,4e-05]
[1755870290389,0.25783516,112670.0,112640.0,4e-05]
[1755870290608,0.0138952,112650.0,112640.0,0.17759681]
[1755870290893,0.00622436,112650.0,112640.0,0.17759681]
[1755870291540,0.00622436,112650.0,112640.0,0.17981627]
[1755870291952,0.00622436,112650.0,112640.0,0.17959681]
[1755870292152,0.00622436,112650.0,112640.0,0.26648156]
[1755870292337,0.00622436,112650.0,112640.0,0.61248156]
[1755870292789,0.00622436,112650.0,112640.0,1.38703263]
[1755870293417,0.00622436,112650.0,112640.0,0.61048156]
[1755870293799,0.00622436,112650.0,112640.0,0.61448156]
[1755870294220,0.00622436,112650.0,112640.0,0.43292475]
[1755870294437,0.00622436,112650.0,112640.0,0.61048156]
[1755870294651,0.00622436,112650.0,112640.0,0.43792475]
[1755870295065,0.00622436,112650.0,112640.0,1.39003263]
[1755870295286,0.03014687,112680.0,112660.0,0.17751304]
[1755870295500,0.05294142,112680.0,112670.0,0.1797684]
[1755870295730,0.00621669,112680.0,112670.0,0.17754954]
[1755870296285,0.00621669,112680.0,112670.0,4e-05]
[1755870296497,0.00621669,112680.0,112670.0,0.17754954]
[1755870296763,0.00621669,112680.0,112670.0,4e-05]
[1755870296978,0.00621669,112680.0,112660.0,0.12611995]